bitfinex-derivatives/quotes_BTCF0:USTF0_20250509
["timestamp","ask_amount","ask_price","bid_price","bid_amount"]
[1746757352798,0.2281682,102860.0,102850.0,2.4313111]
[1746757353000,0.24141731,102860.0,102850.0,2.4313111]
[1746757353197,0.0337,102860.0,102850.0,2.4313111]
[1746757353400,0.0337,102860.0,102850.0,2.4632111]
[1746757353602,0.0337,102860.0,102850.0,2.57204002]
[1746757353808,0.002,102860.0,102850.0,2.76204002]
[1746757354606,0.002,102860.0,102850.0,2.76628237]
[1746757354994,0.002,102860.0,102850.0,2.92616237]
[1746757355299,0.002,102860.0,102850.0,2.94136373]
[1746757356112,0.03185602,102860.0,102850.0,2.94136373]
[1746757356906,0.03185602,102860.0,102850.0,3.01916373]
[1746757358511,0.03185602,102860.0,102850.0,2.92193973]
[1746757359403,0.00243,102870.0,102860.0,0.1944682]
[1746757359709,0.00243,102870.0,102860.0,0.91983947]
[1746757359909,0.2300793,102870.0,102860.0,0.93504083]
[1746757360207,0.2300793,102870.0,102860.0,1.10504083]
[1746757360603,0.2310793,102870.0,102860.0,1.10504083]
[1746757361212,0.2310793,102870.0,102860.0,0.96621191]
[1746757361403,0.2310793,102870.0,102860.0,1.07504083]
[1746757361708,0.2310793,102870.0,102860.0,1.10504083]
[1746757361897,0.2310793,102870.0,102860.0,1.10804083]
[1746757362101,0.2310793,102870.0,102860.0,1.12804083]
[1746757362305,0.2310793,102870.0,102860.0,1.09804083]
[1746757362505,0.2310793,102870.0,102860.0,1.09816807]
[1746757362710,0.2310793,102870.0,102860.0,1.10816807]
[1746757363312,0.2310793,102870.0,102860.0,0.90816807]
[1746757363511,0.2310793,102870.0,102860.0,1.09816807]
[1746757363699,0.2310793,102870.0,102860.0,1.10816807]
[1746757363902,0.2310793,102870.0,102860.0,1.10812705]
[1746757364111,0.2310793,102870.0,102860.0,1.09812705]
[1746757364812,0.2639793,102870.0,102860.0,1.09812705]
[1746757365311,0.2639793,102870.0,102860.0,1.09512705]
[1746757365614,0.2639793,102870.0,102860.0,1.09612705]
[1746757366119,0.2629793,102870.0,102860.0,0.90612705]
[1746757366312,0.2649793,102870.0,102860.0,0.87761813]
[1746757366504,0.2649793,102870.0,102860.0,0.76599813]
[1746757367207,0.2649793,102870.0,102860.0,0.60599813]
[1746757367905,0.2649793,102870.0,102860.0,0.60166956]
[1746757368108,0.2649793,102870.0,102860.0,0.60601865]
[1746757370314,0.2649793,102870.0,102860.0,0.60166956]
[1746757370517,0.2649793,102870.0,102860.0,0.60587975]
[1746757372712,0.2649793,102870.0,102860.0,1.03530867]
[1746757373013,0.2649793,102870.0,102860.0,0.72647975]
[1746757373216,0.2649793,102870.0,102860.0,0.88647975]
[1746757376116,0.2649793,102870.0,102860.0,0.88650647]
[1746757376616,0.2649793,102870.0,102860.0,0.82650647]
[1746757376811,0.2649793,102870.0,102860.0,0.79650647]
[1746757377211,0.2649793,102870.0,102860.0,0.60590647]
[1746757377818,0.2649793,102870.0,102860.0,0.60591992]
[1746757378518,0.2649793,102870.0,102860.0,0.63791992]
[1746757378811,0.2649793,102870.0,102860.0,0.63366956]
[1746757379016,0.2649793,102870.0,102860.0,0.63792207]
[1746757379709,0.2977793,102870.0,102860.0,0.63792207]
[1746757381218,0.2977793,102870.0,102860.0,0.87002207]
[1746757381422,0.10333,102870.0,102860.0,0.87002207]
[1746757381605,0.07053,102870.0,102860.0,0.97885099]
[1746757381811,0.00443,102870.0,102860.0,0.97885099]
[1746757382112,0.00443,102870.0,102860.0,1.13885099]
[1746757382412,0.00443,102870.0,102860.0,1.11891603]
[1746757383121,0.1988793,102870.0,102860.0,1.01008711]
[1746757383316,0.2632793,102870.0,102860.0,1.00008711]
[1746757383517,0.2958793,102870.0,102860.0,1.00008711]
[1746757383712,0.2958793,102870.0,102860.0,1.03008711]
[1746757383909,0.10143,102870.0,102860.0,1.02576956]
[1746757384226,0.10143,102870.0,102860.0,1.02992858]
[1746757386317,0.2958793,102870.0,102860.0,0.82992858]
[1746757392130,0.2958793,102870.0,102860.0,0.66992858]
[1746757393030,0.40470822,102870.0,102860.0,0.60582858]
[1746757393428,0.40470822,102870.0,102860.0,0.24502858]
[1746757393620,0.40470822,102870.0,102860.0,0.21482858]
[1746757393823,0.36740547,102870.0,102860.0,0.21482858]
[1746757394234,0.79973164,102870.0,102860.0,0.01620136]
[1746757394625,0.72820547,102870.0,102860.0,0.01620136]
[1746757395128,0.36740547,102870.0,102860.0,0.21066956]
[1746757395327,0.36740547,102870.0,102860.0,0.24226956]
[1746757395527,0.36740547,102870.0,102860.0,0.27236956]
[1746757395731,0.40485392,102870.0,102860.0,0.27236956]
[1746757396736,0.40485392,102870.0,102860.0,0.24226956]
[1746757397230,0.40485392,102870.0,102860.0,0.24628576]
[1746757397434,0.51382854,102870.0,102860.0,0.02021756]
[1746757397631,0.87462854,102870.0,102860.0,0.02021756]
[1746757397835,0.87462854,102870.0,102860.0,0.01620136]
[1746757400143,1.13184454,102870.0,102860.0,0.01620136]
[1746757400541,1.03462854,102870.0,102860.0,0.01620136]
[1746757401944,0.95188058,102870.0,102830.0,0.3608]
[1746757402249,0.91914574,102840.0,102830.0,0.01298021]
[1746757402437,1.01864162,102840.0,102830.0,0.01298021]
[1746757402637,0.483627,102840.0,102830.0,0.01298021]
[1746757402943,0.483627,102840.0,102830.0,0.59870511]
[1746757402944,0.466526,102840.0,102830.0,0.59870511]
[1746757403146,0.466526,102840.0,102830.0,0.79150511]
[1746757403446,0.57550062,102840.0,102830.0,0.79150511]
[1746757404046,0.57550062,102840.0,102830.0,0.59698021]
[1746757404240,0.57550062,102840.0,102830.0,0.43698021]
[1746757404642,0.57550062,102840.0,102830.0,0.46848021]
[1746757404851,0.57750062,102840.0,102830.0,0.46848021]
[1746757406947,0.57750062,102840.0,102830.0,0.66300511]
[1746757407142,0.46644062,102840.0,102830.0,0.82300511]
[1746757408554,0.388366,102840.0,102830.0,0.82300511]
[1746757408850,0.49734062,102840.0,102830.0,0.82300511]
[1746757409053,0.49734062,102840.0,102830.0,0.59698021]
[1746757409349,0.49734062,102840.0,102830.0,0.43698021]
[1746757409549,0.49734062,102840.0,102830.0,0.66190511]
[1746757410851,0.49977062,102840.0,102830.0,0.66190511]
[1746757412650,0.198936,102840.0,102830.0,0.83190511]
[1746757413045,0.198936,102840.0,102830.0,0.87190511]
[1746757413351,0.198936,102840.0,102830.0,0.99190511]
[1746757413852,0.00443,102840.0,102830.0,1.07182511]
[1746757414050,0.198936,102840.0,102830.0,1.07182511]
[1746757414853,0.198936,102840.0,102830.0,1.07570692]
[1746757416150,0.198936,102840.0,102830.0,1.06272671]
[1746757416351,0.00443,102840.0,102830.0,1.18690215]
[1746757416542,0.00443,102840.0,102830.0,1.30706215]
[1746757416849,0.00443,102840.0,102830.0,1.40430615]
[1746757417447,0.1945024,102850.0,102840.0,0.194506]
[1746757417653,0.1945024,102850.0,102840.0,0.93516325]
[1746757418152,0.1945024,102850.0,102840.0,1.09529586]
[1746757418749,0.1975024,102850.0,102840.0,1.09529586]
[1746757419053,0.1995024,102850.0,102840.0,1.09529586]
[1746757419943,0.1995024,102850.0,102840.0,1.12759586]
[1746757420144,0.1995024,102850.0,102840.0,1.01862124]
[1746757422646,0.1995024,102850.0,102840.0,1.12759586]
[1746757423147,0.1995024,102850.0,102840.0,1.10659799]
[1746757423657,0.1995024,102850.0,102840.0,1.06659799]
[1746757424249,0.1995024,102850.0,102840.0,1.06588697]
[1746757424855,0.1995024,102850.0,102840.0,1.26588724]
[1746757425056,0.1995024,102850.0,102840.0,1.26588846]
[1746757426562,0.1995024,102850.0,102840.0,1.29588846]
[1746757427359,0.1995024,102850.0,102840.0,1.26588846]
[1746757427754,0.005,102850.0,102840.0,1.37486308]
[1746757428056,0.1968982,102860.0,102850.0,0.1944871]
[1746757428252,0.1968982,102860.0,102850.0,0.82558449]
[1746757428447,0.2270982,102860.0,102850.0,0.84078956]
[1746757428652,0.2270982,102860.0,102850.0,0.67078956]
[1746757428856,0.2916982,102860.0,102850.0,0.67078956]
[1746757429263,0.2966982,102860.0,102850.0,1.00078956]
[1746757429561,0.2996982,102860.0,102850.0,1.00178956]
[1746757429753,0.2996982,102860.0,102850.0,1.01268852]
[1746757430256,0.04063,102860.0,102850.0,1.01268852]
[1746757430459,0.01043,102860.0,102850.0,1.12166314]
[1746757430662,0.01043,102860.0,102850.0,1.20166314]
[1746757430856,0.01043,102860.0,102850.0,1.2018492]
[1746757431064,0.37707282,102860.0,102850.0,0.44957458]
[1746757431360,0.40877282,102860.0,102850.0,0.28957458]
[1746757431564,0.40877282,102860.0,102850.0,0.44436951]
[1746757431762,0.2997982,102860.0,102850.0,0.6198871]
[1746757431966,0.10533,102860.0,102850.0,0.8312871]
[1746757432166,0.04163,102860.0,102850.0,1.10026172]
[1746757432366,0.04163,102860.0,102850.0,0.9912871]
[1746757432567,0.01043,102860.0,102850.0,1.1466871]
[1746757432764,0.01043,102860.0,102850.0,1.18566172]
[1746757432965,0.01043,102860.0,102850.0,1.0766871]
[1746757433166,0.2048982,102860.0,102850.0,1.0766871]
[1746757433375,0.2362982,102860.0,102850.0,1.0766871]
[1746757434568,0.2673982,102860.0,102850.0,1.0766871]
[1746757438069,0.07293,102860.0,102850.0,1.0766871]
[1746757438267,0.01043,102860.0,102850.0,1.0766871]
[1746757438572,0.01043,102860.0,102850.0,1.18566172]
[1746757438967,0.01043,102860.0,102850.0,1.21566172]
[1746757439165,0.01043,102860.0,102850.0,2.71566172]
[1746757439365,0.04073,102860.0,102850.0,2.5766871]
[1746757439573,0.2351982,102860.0,102850.0,1.0766871]
[1746757439771,0.2660982,102860.0,102850.0,1.0760071]
[1746757440072,0.2965982,102860.0,102850.0,1.0760071]
[1746757440267,0.40557282,102860.0,102850.0,0.5548]
[1746757440575,0.40557282,102860.0,102850.0,0.3554871]
[1746757440872,0.76637282,102860.0,102850.0,0.161]
[1746757441262,0.92637282,102860.0,102850.0,0.001]
[1746757441660,1.27359682,102860.0,102850.0,0.001]
[1746757442065,1.35871682,102860.0,102850.0,0.001]
[1746757442260,0.194506,102840.0,102830.0,0.3598]
[1746757442474,0.194506,102840.0,102830.0,0.5543249]
[1746757442770,0.36928062,102840.0,102830.0,0.5848249]
[1746757442973,0.260306,102840.0,102830.0,0.6448249]
[1746757443273,0.0658,102840.0,102830.0,0.7095249]
[1746757443574,0.0658,102840.0,102830.0,0.6495249]
[1746757443766,0.0658,102840.0,102830.0,0.6505249]
[1746757443969,0.260306,102840.0,102830.0,0.6505249]
[1746757444166,0.0658,102840.0,102830.0,0.6505249]
[1746757444474,0.0658,102840.0,102830.0,0.8505249]
[1746757444873,0.0668,102840.0,102830.0,0.8515249]
[1746757445069,0.0668,102840.0,102830.0,0.8715249]
[1746757445264,0.0668,102840.0,102830.0,0.8515249]
[1746757446378,0.261306,102840.0,102830.0,0.8515249]
[1746757446676,0.292206,102840.0,102830.0,0.8515249]
[1746757448383,0.001,102840.0,102830.0,1.15545952]
[1746757448877,0.195506,102840.0,102830.0,1.0464849]
[1746757449077,0.289706,102840.0,102830.0,1.2064849]
[1746757450468,0.289706,102840.0,102830.0,1.0115249]
[1746757450669,0.39868062,102840.0,102830.0,0.9489249]
[1746757450865,0.39868062,102840.0,102830.0,0.7789249]
[1746757451071,0.39868062,102840.0,102830.0,0.6189249]
[1746757451265,0.39868062,102840.0,102830.0,0.5868249]
[1746757451573,0.39868062,102840.0,102830.0,0.5563249]
[1746757451574,0.41028242,102840.0,102830.0,0.5563249]
[1746757452076,0.67925704,102840.0,102830.0,0.002]
[1746757452277,0.67925704,102840.0,102830.0,0.1965249]
[1746757452579,0.57028242,102840.0,102830.0,0.1965249]
[1746757453578,0.67925704,102840.0,102830.0,0.002]
[1746757453973,1.04005704,102840.0,102830.0,0.002]
[1746757454379,0.93108242,102840.0,102830.0,0.002]
[1746757455182,1.04005704,102840.0,102830.0,0.002]
[1746757461582,1.13730104,102840.0,102830.0,0.002]
[1746757463681,1.30526104,102840.0,102830.0,0.002]
[1746757466880,1.19592642,102840.0,102830.0,0.002]
[1746757467079,1.09868242,102840.0,102830.0,0.0346]
[1746757467279,0.93868242,102840.0,102830.0,0.0346]
[1746757467479,1.04765704,102840.0,102830.0,0.002]
[1746757467881,0.1945249,102830.0,102820.0,0.00291758]
[1746757468077,0.72799952,102830.0,102820.0,0.00291758]
[1746757468283,0.76079952,102830.0,102820.0,0.00291758]
[1746757469385,0.76322952,102830.0,102820.0,0.00591758]
[1746757470191,0.76422952,102830.0,102820.0,0.00491758]
[1746757470386,0.76522952,102830.0,102820.0,0.00491758]
[1746757471295,0.76622952,102830.0,102820.0,0.00291758]
[1746757471590,0.76622952,102830.0,102820.0,0.03501758]
[1746757472590,0.76622952,102830.0,102820.0,0.00291758]
[1746757476296,0.76622952,102830.0,102820.0,0.03291758]
[1746757478409,0.76622952,102830.0,102820.0,0.00291758]
[1746757479302,0.92622952,102830.0,102820.0,0.00291758]
[1746757480011,0.8172549,102830.0,102820.0,0.00291758]
[1746757480213,0.92622952,102830.0,102820.0,0.03481758]
[1746757481002,1.09258952,102830.0,102820.0,0.03481758]
[1746757481202,0.85030952,102830.0,102820.0,0.10051758]
[1746757483108,0.76622952,102830.0,102820.0,0.10051758]
[1746757490712,0.76422952,102830.0,102820.0,0.10051758]
[1746757490915,0.76922952,102830.0,102820.0,0.10051758]
[1746757491217,0.77422952,102830.0,102820.0,0.10151758]
[1746757496215,0.77422952,102830.0,102820.0,0.06871758]
[1746757500227,0.77422952,102830.0,102820.0,0.03581758]
[1746757501124,0.77422952,102830.0,102820.0,0.00391758]
[1746757501925,0.8084624,102830.0,102820.0,0.00391758]
[1746757503735,0.77436494,102830.0,102820.0,0.00391758]
[1746757504037,0.87161694,102830.0,102820.0,0.00391758]
[1746757504328,1.03161694,102830.0,102820.0,0.00391758]
[1746757506230,0.1945438,102820.0,102810.0,0.03227266]
[1746757506530,0.84303384,102820.0,102810.0,0.03227266]
[1746757506721,0.84303384,102820.0,102810.0,0.09437266]
[1746757507732,0.6542438,102820.0,102810.0,0.28993536]
[1746757508028,0.70065384,102820.0,102810.0,0.28993536]
[1746757508228,0.1975438,102820.0,102810.0,0.81073536]
[1746757508619,0.2015438,102820.0,102810.0,0.81073536]
[1746757508825,0.31065384,102820.0,102810.0,0.81073536]
[1746757510230,0.2015438,102820.0,102810.0,0.81073536]
[1746757512435,0.2015438,102820.0,102810.0,1.02073536]
[1746757513322,0.007,102820.0,102810.0,1.02073536]
[1746757513527,0.3033776,102840.0,102830.0,0.1945249]
[1746757513729,0.3033776,102840.0,102830.0,0.3645249]
[1746757514032,0.3033776,102840.0,102830.0,0.4612249]
[1746757514233,0.3033776,102840.0,102830.0,0.6212249]
[1746757514433,0.3033776,102840.0,102830.0,0.4512249]
[1746757514833,0.3058076,102840.0,102830.0,0.4512249]
[1746757515034,0.3078076,102840.0,102830.0,0.4522249]
[1746757515336,0.3108076,102840.0,102830.0,0.4532249]
[1746757516021,0.41991764,102840.0,102830.0,0.2587]
[1746757516225,0.48261764,102840.0,102830.0,0.2587]
[1746757517031,0.95252768,102840.0,102830.0,0.1932]
[1746757517239,0.95252768,102840.0,102830.0,0.0332]
[1746757522341,0.95252768,102840.0,102830.0,0.002]
[1746757524235,0.95252768,102840.0,102810.0,0.06277266]
[1746757524236,0.1945438,102820.0,102810.0,0.06277266]
[1746757524430,0.66445384,102820.0,102810.0,0.09317266]
[1746757524630,0.72775384,102820.0,102810.0,0.09317266]
[1746757524833,0.72775384,102820.0,102810.0,0.06247266]
[1746757525034,0.72775384,102820.0,102810.0,0.03137266]
[1746757525634,0.72875384,102820.0,102810.0,0.03437266]
[1746757526938,0.72875384,102820.0,102810.0,0.03337266]
[1746757527133,0.73175384,102820.0,102810.0,0.03337266]
[1746757527336,0.73375384,102820.0,102810.0,0.03237266]
[1746757530141,0.73375384,102820.0,102810.0,0.06427266]
[1746757531846,0.73375384,102820.0,102810.0,0.25883536]
[1746757532046,0.73375384,102820.0,102810.0,0.06427266]
[1746757532239,0.73375384,102820.0,102810.0,0.22427266]
[1746757535742,0.6246438,102820.0,102810.0,0.22427266]
[1746757536136,0.2638438,102820.0,102810.0,0.58507266]
[1746757536341,0.2005438,102820.0,102810.0,0.95963536]
[1746757536550,0.006,102820.0,102810.0,1.2125854]
[1746757537045,0.006,102820.0,102810.0,1.04347536]
[1746757537349,0.006,102820.0,102810.0,1.07347536]
[1746757537544,0.006,102820.0,102810.0,1.04347536]
[1746757537843,0.006,102820.0,102810.0,1.1525854]
[1746757538048,0.006,102820.0,102810.0,1.57984939]
[1746757538240,0.006,102820.0,102810.0,1.34861607]
[1746757538442,0.006,102820.0,102810.0,1.33385032]
[1746757539549,0.006,102820.0,102810.0,1.34905751]
[1746757539940,0.006,102820.0,102810.0,1.42685751]
[1746757540141,0.00843,102820.0,102810.0,1.42685751]
[1746757542539,0.00843,102820.0,102810.0,1.51365751]
[1746757542746,0.2061155,102840.0,102830.0,0.1945249]
[1746757542945,0.2061155,102840.0,102830.0,0.96748306]
[1746757543141,0.2061155,102840.0,102830.0,1.15277302]
[1746757543344,0.2061155,102840.0,102830.0,1.16380252]
[1746757543949,0.2091155,102840.0,102830.0,1.16480252]
[1746757544148,0.2121155,102840.0,102830.0,1.16480252]
[1746757544552,0.2005137,102840.0,102830.0,1.25192252]
[1746757544749,0.006,102840.0,102830.0,1.72183256]
[1746757545047,0.0003,102850.0,102840.0,0.194506]
[1746757545248,0.0003,102850.0,102840.0,1.1112588]
[1746757545845,0.1947871,102850.0,102840.0,1.1112588]
[1746757546143,0.1947871,102850.0,102840.0,1.17735595]
[1746757546344,0.1947871,102850.0,102840.0,1.17935595]
[1746757546853,0.30389714,102850.0,102840.0,1.19319595]
[1746757547150,0.37019714,102850.0,102840.0,1.19319595]
[1746757547350,0.2286871,102850.0,102840.0,1.19319595]
[1746757547545,0.1957871,102850.0,102840.0,1.19319595]
[1746757548053,0.2286871,102850.0,102840.0,1.19319595]
[1746757548448,0.33779714,102850.0,102840.0,0.91935595]
[1746757548753,0.33779714,102850.0,102840.0,1.10935595]
[1746757548955,0.37019714,102850.0,102840.0,0.84155595]
[1746757549154,0.37019714,102850.0,102840.0,0.84218814]
[1746757549345,0.37019714,102850.0,102810.0,0.73139536]
[1746757549346,0.1945438,102820.0,102810.0,0.73139536]
[1746757549546,0.1945438,102820.0,102810.0,0.73173533]
[1746757549751,0.1945438,102820.0,102810.0,0.88173533]
[1746757550348,0.1945438,102820.0,102810.0,0.86589536]
[1746757550554,0.1955438,102820.0,102810.0,0.90539536]
[1746757550742,0.1955438,102820.0,102810.0,0.93589536]
[1746757551154,0.1955438,102820.0,102810.0,1.09589536]
[1746757551353,0.1945438,102820.0,102810.0,1.08789536]
[1746757551557,0.1945438,102820.0,102810.0,1.09189536]
[1746757551751,0.1945438,102820.0,102810.0,1.19497536]
[1746757552448,0.1955438,102820.0,102810.0,1.20097536]
[1746757552653,0.1955438,102820.0,102810.0,1.04925556]
[1746757552954,0.1955438,102820.0,102810.0,1.09771536]
[1746757552955,0.2271438,102820.0,102810.0,1.09771536]
[1746757553153,0.2574438,102820.0,102810.0,0.99663536]
[1746757553346,0.2574438,102820.0,102810.0,1.09971536]
[1746757553755,0.2574438,102820.0,102810.0,0.99663536]
[1746757553955,0.2574438,102820.0,102810.0,1.09671536]
[1746757554156,0.2584438,102820.0,102810.0,1.09471536]
[1746757554953,0.2584438,102820.0,102810.0,0.99163536]
[1746757555255,0.2584438,102820.0,102810.0,1.09471536]
[1746757556448,0.2584438,102820.0,102810.0,1.2038254]
[1746757557053,0.001,102820.0,102810.0,1.41019943]
[1746757557259,0.001,102880.0,102810.0,2.17917274]
[1746757557551,0.1944493,102870.0,102860.0,0.46991004]
[1746757557758,0.2277493,102870.0,102860.0,0.6141]
[1746757557946,0.2605493,102870.0,102860.0,0.6185682]
[1746757558246,0.36965934,102870.0,102860.0,0.1923]
[1746757558440,0.36965934,102870.0,102860.0,0.16]
[1746757558647,0.07727682,102870.0,102860.0,0.3544682]
[1746757558847,0.27172612,102870.0,102860.0,0.4184682]
[1746757559047,0.27272612,102870.0,102860.0,0.7792682]
[1746757559245,0.27272612,102870.0,102860.0,0.6192682]
[1746757559457,0.27272612,102870.0,102860.0,0.5882682]
[1746757559859,0.1944682,102860.0,102850.0,2.16684948]
[1746757560062,0.75827824,102860.0,102850.0,0.2430927]
[1746757560560,0.39747824,102860.0,102850.0,0.2430927]
[1746757560952,0.75827824,102860.0,102850.0,0.2430927]
[1746757561348,0.75827824,102860.0,102850.0,0.60779722]
[1746757561349,0.0939,102860.0,102850.0,0.60779722]
[1746757561557,0.2883682,102860.0,102850.0,0.66949722]
[1746757562356,0.2883682,102860.0,102850.0,0.67049722]
[1746757562556,0.2883682,102860.0,102850.0,0.68523329]
[1746757563065,0.0939,102860.0,102850.0,0.68523329]
[1746757563359,0.2883682,102860.0,102850.0,0.68523329]
[1746757563963,0.2883682,102860.0,102850.0,0.67049722]
[1746757564365,0.0939,102860.0,102850.0,0.94960726]
[1746757564754,0.0939,102860.0,102850.0,0.84049722]
[1746757564955,0.0939,102860.0,102850.0,0.87332358]
[1746757565166,0.2883682,102860.0,102850.0,0.89786189]
[1746757565355,0.2883682,102860.0,102850.0,0.68406189]
[1746757565555,0.2893682,102860.0,102850.0,0.65286189]
[1746757565955,0.2913682,102860.0,102850.0,0.65286189]
[1746757566760,0.2913682,102860.0,102850.0,0.65277807]
[1746757566963,0.0969,102860.0,102850.0,0.65277807]
[1746757567265,0.2610682,102860.0,102850.0,0.85607807]
[1746757567763,0.2610682,102860.0,102850.0,0.68607807]
[1746757568265,0.2610682,102860.0,102850.0,0.84607807]
[1746757568661,0.2610682,102860.0,102850.0,0.84600388]
[1746757569366,0.2610682,102860.0,102850.0,0.84223101]
[1746757570168,0.2610682,102860.0,102850.0,1.13134105]
[1746757570358,0.2610682,102860.0,102850.0,1.13507964]
[1746757571069,0.2610682,102860.0,102850.0,1.0259696]
[1746757571464,0.2610682,102860.0,102850.0,1.13134105]
[1746757573370,0.003,102860.0,102850.0,1.13513006]
[1746757573666,0.003,102860.0,102850.0,1.15512969]
[1746757575671,0.003,102860.0,102850.0,1.04601965]
[1746757575870,0.1974682,102860.0,102850.0,1.04617231]
[1746757576070,0.1974682,102860.0,102850.0,1.15528235]
[1746757577569,0.1974682,102860.0,102850.0,1.15134105]
[1746757577776,0.1974682,102860.0,102850.0,1.15523891]
[1746757578369,0.003,102860.0,102850.0,1.15523891]
[1746757579572,0.1944682,102860.0,102850.0,2.65734745]
[1746757580877,0.4059388,102870.0,102860.0,0.1944682]
[1746757581077,0.4059388,102870.0,102860.0,0.8320682]
[1746757581377,0.32058404,102870.0,102850.0,0.57182331]
[1746757581575,0.2857682,102860.0,102850.0,0.87236461]
[1746757581777,0.2857682,102860.0,102850.0,0.94974585]
[1746757582173,0.2857682,102860.0,102850.0,0.74774585]
[1746757582876,0.2857682,102860.0,102850.0,0.73296461]
[1746757583075,0.2857682,102860.0,102850.0,0.73396461]
[1746757584375,0.2857682,102860.0,102850.0,0.73496461]
[1746757584576,0.2857682,102860.0,102850.0,1.03407465]
[1746757584879,0.2857682,102860.0,102850.0,1.01407465]
[1746757585480,0.0913,102860.0,102850.0,1.03407465]
[1746757585683,0.061,102860.0,102850.0,1.03407465]
[1746757586176,0.3252221,102870.0,102860.0,0.1944682]
[1746757586382,0.3874221,102870.0,102860.0,0.8210682]
[1746757586578,0.3874221,102870.0,102860.0,0.65488498]
[1746757587884,0.339808,102870.0,102860.0,0.6510682]
[1746757588289,0.341808,102870.0,102860.0,0.6510682]
[1746757589588,0.341808,102870.0,102860.0,0.65491796]
[1746757590183,0.341808,102870.0,102860.0,0.62251796]
[1746757590383,0.341808,102870.0,102860.0,0.62251856]
[1746757591184,0.341808,102870.0,102860.0,0.59231856]
[1746757591385,0.45091804,102870.0,102860.0,0.59231856]
[1746757591585,0.45091804,102870.0,102860.0,0.5884682]
[1746757592089,0.341808,102870.0,102860.0,0.5884682]
[1746757594594,0.341808,102870.0,102860.0,0.2276682]
[1746757594795,0.341808,102870.0,102860.0,0.5884682]
[1746757597788,0.341808,102870.0,102860.0,0.73325737]
[1746757598094,0.341808,102870.0,102860.0,0.62414733]
[1746757599697,0.341808,102870.0,102860.0,0.79414733]
[1746757599897,0.2931943,102870.0,102860.0,0.79414733]
[1746757600393,0.09873,102870.0,102860.0,0.79414733]
[1746757600691,0.00543,102870.0,102860.0,0.90325737]
[1746757601197,0.00543,102870.0,102860.0,2.56351557]
[1746757601396,0.03793,102870.0,102860.0,2.56351557]
[1746757601698,0.03693,102870.0,102860.0,2.56351557]
[1746757601898,0.03493,102870.0,102860.0,2.56551557]
[1746757603284,0.2293793,102870.0,102860.0,2.56551557]
[1746757603999,0.03493,102870.0,102860.0,2.56551557]
[1746757605600,0.2293793,102870.0,102860.0,2.56551557]
[1746757606298,0.03493,102870.0,102860.0,2.56551557]
[1746757606700,0.2293793,102870.0,102860.0,2.5653197]
[1746757607990,0.2293793,102870.0,102860.0,2.45620966]
[1746757608196,0.2605793,102870.0,102860.0,2.31620966]
[1746757608399,0.2605793,102870.0,102860.0,0.81620966]
[1746757608599,0.36968934,102870.0,102860.0,0.78430966]
[1746757608800,0.36968934,102870.0,102860.0,0.7804682]
[1746757608995,0.2605793,102870.0,102860.0,0.7804682]
[1746757609308,0.2605793,102870.0,102860.0,0.6509682]
[1746757609498,0.2605793,102870.0,102860.0,0.6209682]
[1746757610510,0.2615793,102870.0,102860.0,0.7999682]
[1746757610710,0.2615793,102870.0,102860.0,0.62369874]
[1746757610911,0.06713,102870.0,102860.0,0.92280878]
[1746757611304,0.06713,102870.0,102860.0,1.13280878]
[1746757611506,0.03593,102870.0,102860.0,1.13280878]
[1746757611706,0.03793,102870.0,102860.0,1.13180878]
[1746757614815,0.03793,102870.0,102860.0,1.02269874]
[1746757615212,0.06943,102870.0,102860.0,1.02269874]
[1746757615714,0.06943,102870.0,102860.0,1.0189682]
[1746757616217,0.06943,102870.0,102860.0,0.8289682]
[1746757616420,0.06943,102870.0,102860.0,1.0289682]
[1746757616809,0.06943,102870.0,102860.0,1.03272162]
[1746757617217,0.067,102870.0,102860.0,1.03272162]
[1746757617517,0.067,102870.0,102860.0,0.98272321]
[1746757617718,0.067,102870.0,102860.0,1.00272321]
[1746757618018,0.067,102870.0,102860.0,0.98272321]
[1746757620514,0.2614493,102870.0,102860.0,0.98272321]
[1746757620716,0.2614493,102870.0,102860.0,0.9789682]
[1746757621223,0.2614493,102870.0,102860.0,0.8189682]
[1746757621618,0.067,102870.0,102860.0,0.8189682]
[1746757622116,0.067,102870.0,102860.0,0.92807824]
[1746757622316,0.2614493,102870.0,102860.0,1.08807824]
[1746757622525,0.06943,102870.0,102860.0,1.08807824]
[1746757622724,0.03793,102870.0,102860.0,1.09186239]
[1746757623024,0.2323793,102870.0,102860.0,1.09186239]
[1746757623214,0.2637793,102870.0,102860.0,0.93186239]
[1746757623624,0.2637793,102870.0,102860.0,0.82275235]
[1746757624123,0.2637793,102870.0,102860.0,0.98275235]
[1746757627624,0.06933,102870.0,102860.0,0.98275235]
[1746757629226,0.2637793,102870.0,102860.0,0.98275235]
[1746757629818,0.2637793,102870.0,102860.0,0.57145235]
[1746757630013,0.2954793,102870.0,102860.0,0.58145235]
[1746757630223,0.2954793,102870.0,102860.0,0.39145235]
[1746757630828,0.2954793,102870.0,102860.0,0.3876682]
[1746757631220,0.2954793,102870.0,102860.0,0.2276682]
[1746757631724,0.1944682,102860.0,102850.0,0.56981581]
[1746757631930,0.39977824,102860.0,102850.0,0.21285714]
[1746757632118,0.39977824,102860.0,102850.0,0.20902541]
[1746757632319,0.1944871,102850.0,102840.0,0.8410628]
[1746757632519,0.2589871,102850.0,102840.0,1.0449033]
[1746757632931,0.2589871,102850.0,102840.0,1.0145033]
[1746757633123,0.2589871,102850.0,102840.0,0.9328628]
[1746757633427,0.2589871,102850.0,102840.0,0.9632628]
[1746757633922,0.2589871,102850.0,102840.0,0.7662628]
[1746757634127,0.2589871,102850.0,102840.0,0.7682628]
[1746757635128,0.2589871,102850.0,102840.0,0.4074628]
[1746757635329,0.2589871,102850.0,102840.0,0.7682628]
[1746757637630,0.2609871,102850.0,102840.0,0.7632628]
[1746757637826,0.2619871,102850.0,102840.0,0.7632628]
[1746757638127,0.2619871,102850.0,102840.0,0.9232628]
[1746757638524,0.2619871,102850.0,102840.0,1.0932628]
[1746757639729,0.2619871,102850.0,102840.0,1.1232628]
[1746757639930,0.0675,102850.0,102840.0,1.23623413]
[1746757640125,0.003,102850.0,102840.0,1.23623413]
[1746757640325,0.003,102850.0,102840.0,1.34623413]
[1746757641230,0.002,102850.0,102840.0,1.34623413]
[1746757641535,0.002,102850.0,102840.0,1.34723413]
[1746757642435,0.3570096,102860.0,102850.0,0.1944871]
[1746757642626,0.3570096,102860.0,102850.0,0.65484839]
[1746757643235,0.3570096,102860.0,102850.0,0.81484839]
[1746757643436,0.3590096,102860.0,102850.0,0.81484839]
[1746757643734,0.3590096,102860.0,102850.0,0.82930589]
[1746757643934,0.3600096,102860.0,102850.0,0.82930589]
[1746757645135,0.003,102860.0,102850.0,0.99841593]
[1746757645536,0.003,102860.0,102850.0,1.18537593]
[1746757645936,0.003,102860.0,102850.0,2.68537593]